[Event "FIDE Chesscom Grand Swiss 2019"]
[Site "Douglas-Isle of Man"]
[Date "2019.10.18"]
[Round "8.10"]
[White "Hess, Robert"]
[Black "Nabaty, Tamir"]
[Result "0-1"]
[ECO "D45"]
[WhiteElo "2581"]
[BlackElo "2658"]
[Annotator "RC"]
[PlyCount "58"]
[EventDate "2019.10.10"]
[EventType "swiss"]
[EventCountry "GBR"]
[SourceTitle "playchess.com"]
[Source "ChessBase"]
[SourceQuality "1"]
[TimeControl "40/6000+30:20/3000+30:900+30"]

1. c4 {[%emt 0:00:00]} e6 {[%emt 0:00:00]} 2. Nf3 {[%emt 0:00:02]} d5 {[%emt 0:00:00]} 3. e3 {[%emt 0:00:10]} Nf6 {[%emt 0:00:15]} 4. b3 {[%emt 0:00:26]} Bd6 {[%emt 0:01:05]} 5. Bb2 {[%emt 0:00:45]} O-O {[%emt 0:01:36]} 6. Nc3 {[%emt 0:01:11]} Nbd7 {[%emt 0:03:03]} 7. d4 {[%emt 0:00:41]} c6 {[%emt 0:01:33]} 8. Qc2 {[%emt 0:05:11]} Qe7 {[%emt 0:02:25]} 9. O-O-O {[%emt 0:21:34]} dxc4 {[%emt 0:09:03]} 10. Bxc4 {[%emt 0:04:04]} b5 {[%emt 0:00:23]} 11. Bd3 {[%emt 0:02:16]} a5 {[%emt 0:05:21]} 12. g4 {[%emt 0:12:55]} g6 {[%emt 0:13:36]} 13. g5 {[%emt 0:05:03]} Nd5 {[%emt 0:00:37]} 14. Nxd5 {[%emt 0:00:07]} cxd5 {[%emt 0:00:54]} 15. Bxb5 {[%emt 0:05:26]} Ba6 {[%emt 0:07:26]} 16. Bxa6 {[%emt 0:01:26]} Rxa6 {[%emt 0:00:08]} 17. Rd3 {[%emt 0:16:01]} a4 {[%emt 0:02:11]} 18. Kb1 {[%emt 0:06:57]} axb3 {[%emt 0:03:08]} 19. axb3 {[%emt 0:04:01]} Rfa8 {[%emt 0:01:24]} 20. Rc3 {[%emt 0:04:13]} Nb6 {[%emt 0:00:46]} 21. Rc1 {[%emt 0:13:56]} Qa7 {[%emt 0:05:56]} 22. Qd3 {[%emt 0:02:05]} Ra2 {[%emt 0:00:24]} 23. Rc5 {[%emt 0:01:07]} Bxc5 {[%emt 0:02:53]} 24. dxc5 {[%emt 0:00:09]} Nc4 {[%emt 0:00:21]} 25. bxc4 {[%emt 0:01:36]} Rxb2+ {[%emt 0:03:49]} 26. Kxb2 {[%emt 0:00:05]} Qa2+ {[%emt 0:00:04]} 27. Kc3 {[%emt 0:00:05]} d4+ {[%emt 0:00:17]} 28. Kxd4 {[%emt 0:00:18]} Rd8+ {[%emt 0:00:07]} 29. Ke4 {[%emt 0:00:26]} Qa8+ {[%emt 0:00:06]} 0-1

[Event "FIDE Chesscom Grand Swiss 2019"]
[Site "Douglas-Isle of Man"]
[Date "2019.10.18"]
[Round "8.27"]
[White "Munguntuul, Batkhuyag"]
[Black "Christiansen, Johan-Sebastian"]
[Result "1/2-1/2"]
[ECO "C11"]
[WhiteElo "2421"]
[BlackElo "2558"]
[Annotator "ChessBase"]
[PlyCount "93"]
[EventDate "2019.10.10"]
[EventType "swiss"]
[EventCountry "GBR"]
[SourceTitle "playchess.com"]
[Source "ChessBase"]
[SourceQuality "1"]
[TimeControl "40/6000+30:20/3000+30:900+30"]

1. e4 {[%emt 0:00:00]} e6 {[%emt 0:04:39]} 2. d4 {[%emt 0:00:00]} d5 {[%emt 0:00:11]} 3. Nc3 {[%emt 0:00:00]} Nf6 {[%emt 0:00:44]} 4. e5 {[%emt 0:00:03]} Nfd7 {[%emt 0:00:04]} 5. f4 {[%emt 0:00:11]} c5 {[%emt 0:00:02]} 6. Nf3 {[%emt 0:00:06]} Nc6 {[%emt 0:00:07]} 7. Be3 {[%emt 0:00:06]} Be7 {[%emt 0:01:07]} 8. a3 {[%emt 0:02:33]} Qb6 {[%emt 0:04:41]} 9. Be2 {[%emt 0:11:36]} O-O {[%emt 0:12:46]} 10. O-O {[%emt 0:08:53]} cxd4 {[%emt 0:07:09]} 11. Nxd4 {[%emt 0:24:10]} Bc5 {[%emt 0:04:53]} 12. Ncb5 {[%emt 0:02:08]} Nxd4 {[%emt 0:11:59]} 13. Bxd4 {[%emt 0:15:59]} a6 {[%emt 0:08:17]} 14. b4 {[%emt 0:00:38]} Bxd4+ {[%emt 0:16:55]} 15. Nxd4 {[%emt 0:00:12]} f6 {[%emt 0:02:11]} 16. Bg4 {[%emt 0:19:50]} Nxe5 {[%emt 0:27:59]} 17. fxe5 {[%emt 0:01:19]} fxe5 {[%emt 0:00:01]} 18. Rxf8+ {[%emt 0:01:22]} Kxf8 {[%emt 0:00:01]} 19. Qf3+ {[%emt 0:10:44]} Ke7 {[%emt 0:00:02]} 20. Rf1 {[%emt 0:00:40]} Qxd4+ {[%emt 0:00:17]} 21. Kh1 {[%emt 0:00:02]} Bd7 {[%emt 0:03:56]} 22. Qf7+ {[%emt 0:00:03]} Kd6 {[%emt 0:00:05]} 23. Qxg7 {[%emt 0:00:28]} Rc8 {[%emt 0:00:46]} 24. Bd1 {[%emt 0:01:07]} Qe4 {[%emt 0:01:07]} 25. Qg3 {[%emt 0:08:22]} Qg6 {[%emt 0:00:20]} 26. Qf2 {[%emt 0:00:44]} d4 {[%emt 0:00:15]} 27. Re1 {[%emt 0:00:41]} Qf5 {[%emt 0:00:43]} 28. Qh4 {[%emt 0:01:09]} Bc6 {[%emt 0:00:49]} 29. Qg3 {[%emt 0:00:38]} Rf8 {[%emt 0:01:15]} 30. h3 {[%emt 0:00:03]} Rf6 {[%emt 0:00:44]} 31. c4 {[%emt 0:00:33]} Rg6 {[%emt 0:00:41]} 32. Bg4 {[%emt 0:00:14]} Qf4 {[%emt 0:00:17]} 33. Qh4 {[%emt 0:00:22]} Qf6 {[%emt 0:00:52]} 34. Qxh7 {[%emt 0:00:32]} Rg7 {[%emt 0:00:16]} 35. Qh8 {[%emt 0:00:12]} Kc7 {[%emt 0:00:28]} 36. Qh5 {[%emt 0:01:27]} Rg5 {[%emt 0:00:09]} 37. Qh7+ {[%emt 0:00:08]} Rg7 {[%emt 0:00:06]} 38. Qh5 {[%emt 0:00:01]} Rg5 {[%emt 0:00:50]} 39. Qh7+ {[%emt 0:00:02]} Kb8 {[%emt 0:00:16]} 40. b5 {[%emt 0:02:01]} axb5 {[%emt 0:00:34]} 41. cxb5 {[%emt 0:50:07]} Bxb5 {[%emt 0:12:02]} 42. Bf3 {[%emt 0:00:00]} Ba6 {[%emt 0:11:31]} 43. Qd7 {[%emt 0:00:00]} Rf5 {[%emt 0:06:04]} 44. Qd6+ {[%emt 0:00:00]} Ka7 {[%emt 0:00:24]} 45. Qc5+ {[%emt 0:00:00]} Kb8 {[%emt 0:00:52]} 46. Qd6+ {[%emt 0:00:00]} Ka7 {[%emt 0:00:06]} 47. Qc5+ {[%emt 0:00:00]} 1/2-1/2

[Event "FIDE Chesscom Grand Swiss 2019"]
[Site "Douglas-Isle of Man"]
[Date "2019.10.18"]
[Round "8.30"]
[White "Sjugirov, Sanan"]
[Black "Abdusattorov, Nodirbek"]
[Result "1/2-1/2"]
[ECO "B90"]
[WhiteElo "2662"]
[BlackElo "2608"]
[Annotator "RC"]
[PlyCount "101"]
[EventDate "2019.10.10"]
[EventType "swiss"]
[EventCountry "GBR"]
[SourceTitle "playchess.com"]
[Source "ChessBase"]
[SourceQuality "1"]
[TimeControl "40/6000+30:20/3000+30:900+30"]

1. e4 {[%emt 0:00:00]} c5 {[%emt 0:00:00]} 2. Nf3 {[%emt 0:00:02]} d6 {[%emt 0:00:00]} 3. d4 {[%emt 0:00:14]} cxd4 {[%emt 0:00:00]} 4. Nxd4 {[%emt 0:00:06]} Nf6 {[%emt 0:00:05]} 5. Nc3 {[%emt 0:00:06]} a6 {[%emt 0:00:05]} 6. h3 {[%emt 0:00:14]} e5 {[%emt 0:00:51]} 7. Nb3 {[%emt 0:00:33]} b5 {[%emt 0:08:06]} 8. a4 {[%emt 0:27:47]} b4 {[%emt 0:14:08]} 9. Nd5 {[%emt 0:01:18]} Be6 {[%emt 0:04:24]} 10. Bg5 {[%emt 0:11:08]} Nbd7 {[%emt 0:01:59]} 11. Nxb4 {[%emt 0:14:01]} Qb6 {[%emt 0:04:45]} 12. Nd5 {[%emt 0:04:41]} Nxd5 {[%emt 0:02:50]} 13. exd5 {[%emt 0:00:24]} Qb4+ {[%emt 0:00:15]} 14. c3 {[%emt 0:18:15]} Qe4+ {[%emt 0:00:11]} 15. Be3 {[%emt 0:00:40]} Bxd5 {[%emt 0:05:23]} 16. c4 {[%emt 0:08:53]} Bb7 {[%emt 0:02:49]} 17. Qd2 {[%emt 0:05:59]} Be7 {[%emt 0:07:45]} 18. Na5 {[%emt 0:00:04]} Bd8 {[%emt 0:08:47]} 19. Nxb7 {[%emt 0:02:04]} Qxb7 {[%emt 0:00:09]} 20. Be2 {[%emt 0:00:19]} Rb8 {[%emt 0:07:21]} 21. O-O {[%emt 0:00:29]} Bc7 {[%emt 0:06:52]} 22. Rfb1 {[%emt 0:01:29]} Qb4 {[%emt 0:06:38]} 23. Qxb4 {[%emt 0:02:33]} Rxb4 {[%emt 0:00:05]} 24. Bd2 {[%emt 0:00:05]} Ba5 {[%emt 0:02:05]} 25. Bxb4 {[%emt 0:03:21]} Bxb4 {[%emt 0:00:05]} 26. b3 {[%emt 0:03:55]} Ke7 {[%emt 0:00:29]} 27. Ra2 {[%emt 0:00:37]} Nc5 {[%emt 0:00:50]} 28. Bd1 {[%emt 0:00:42]} Ne4 {[%emt 0:01:27]} 29. Rc1 {[%emt 0:00:46]} Bd2 {[%emt 0:02:13]} 30. Rcc2 {[%emt 0:00:18]} Bb4 {[%emt 0:00:08]} 31. Rc1 {[%emt 0:00:11]} Nc5 {[%emt 0:01:37]} 32. Bc2 {[%emt 0:01:59]} g6 {[%emt 0:00:29]} 33. g3 {[%emt 0:00:42]} f5 {[%emt 0:00:44]} 34. Kg2 {[%emt 0:00:16]} Ne6 {[%emt 0:00:19]} 35. Bd1 {[%emt 0:01:21]} a5 {[%emt 0:00:17]} 36. Rb1 {[%emt 0:00:51]} Nd4 {[%emt 0:00:06]} 37. f3 {[%emt 0:00:56]} Kf6 {[%emt 0:00:26]} 38. Rf2 {[%emt 0:00:19]} g5 {[%emt 0:00:38]} 39. Bc2 {[%emt 0:00:25]} h5 {[%emt 0:00:59]} 40. Rh1 {[%emt 0:01:03]} h4 {[%emt 0:02:36]} 41. g4 {[%emt 0:03:38]} f4 {[%emt 0:00:50]} 42. Rb1 {[%emt 0:01:14]} Rb8 {[%emt 0:00:21]} 43. Be4 {[%emt 0:01:35]} Ke7 {[%emt 0:00:14]} 44. Rff1 {[%emt 0:02:25]} Kd7 {[%emt 0:00:44]} 45. Rfd1 {[%emt 0:00:30]} Kc7 {[%emt 0:00:56]} 46. Rd3 {[%emt 0:03:17]} Bc5 {[%emt 0:00:55]} 47. Kf1 {[%emt 0:00:33]} Nc2 {[%emt 0:01:18]} 48. Rd2 {[%emt 0:05:52]} Nd4 {[%emt 0:00:40]} 49. Rd3 {[%emt 0:00:12]} Bb4 {[%emt 0:01:23]} 50. Rbd1 {[%emt 0:01:58]} Bc5 {[%emt 0:01:56]} 51. Rb1 {[%emt 0:01:41]} 1/2-1/2

[Event "FIDE Chesscom Grand Swiss 2019"]
[Site "Douglas-Isle of Man"]
[Date "2019.10.18"]
[Round "8.36"]
[White "Stefanova, Antoaneta"]
[Black "Arkell, Keith C"]
[Result "1-0"]
[ECO "B11"]
[WhiteElo "2479"]
[BlackElo "2447"]
[Annotator "ChessBase"]
[PlyCount "101"]
[EventDate "2019.10.10"]
[EventType "swiss"]
[EventCountry "GBR"]
[SourceTitle "playchess.com"]
[Source "ChessBase"]
[SourceQuality "1"]
[TimeControl "40/6000+30:20/3000+30:900+30"]

1. e4 {[%emt 0:01:04]} c6 {[%emt 0:00:00]} 2. Nc3 {[%emt 0:00:20]} d5 {[%emt 0:00:00]} 3. Nf3 {[%emt 0:00:16]} Bg4 {[%emt 0:00:06]} 4. h3 {[%emt 0:00:19]} Bxf3 {[%emt 0:00:06]} 5. Qxf3 {[%emt 0:00:04]} dxe4 {[%emt 0:00:16]} 6. Nxe4 {[%emt 0:05:11]} Nd7 {[%emt 0:00:05]} 7. b4 {[%emt 0:19:16]} Ngf6 {[%emt 0:03:26]} 8. b5 {[%emt 0:20:10]} Qc7 {[%emt 0:29:12]} 9. Bb2 {[%emt 0:05:53]} Nxe4 {[%emt 0:01:22]} 10. Qxe4 {[%emt 0:02:49]} e6 {[%emt 0:04:04]} 11. g4 {[%emt 0:08:06]} Nf6 {[%emt 0:04:36]} 12. Qf3 {[%emt 0:14:34]} Rd8 {[%emt 0:07:48]} 13. Bg2 {[%emt 0:05:25]} cxb5 {[%emt 0:10:45]} 14. Qxb7 {[%emt 0:00:32]} Qxb7 {[%emt 0:00:04]} 15. Bxb7 {[%emt 0:00:05]} Bb4 {[%emt 0:08:51]} 16. Bc6+ {[%emt 0:03:42]} Kf8 {[%emt 0:05:40]} 17. O-O-O {[%emt 0:01:42]} a6 {[%emt 0:03:28]} 18. f4 {[%emt 0:00:44]} Nd5 {[%emt 0:02:30]} 19. f5 {[%emt 0:03:55]} exf5 {[%emt 0:03:59]} 20. gxf5 {[%emt 0:00:28]} f6 {[%emt 0:00:13]} 21. Rhg1 {[%emt 0:03:33]} Nf4 {[%emt 0:07:51]} 22. Rg4 {[%emt 0:03:19]} Bd6 {[%emt 0:00:45]} 23. Rf1 {[%emt 0:00:52]} Nd3+ {[%emt 0:01:21]} 24. Kb1 {[%emt 0:04:59]} Nxb2 {[%emt 0:00:17]} 25. Kxb2 {[%emt 0:00:02]} Be5+ {[%emt 0:00:22]} 26. Kc1 {[%emt 0:00:06]} Rd6 {[%emt 0:01:16]} 27. Bb7 {[%emt 0:00:40]} Kf7 {[%emt 0:10:54]} 28. Rfg1 {[%emt 0:00:09]} Rg8 {[%emt 0:01:49]} 29. Bc8 {[%emt 0:00:21]} g5 {[%emt 0:01:06]} 30. Be6+ {[%emt 0:00:31]} Rxe6 {[%emt 0:00:04]} 31. fxe6+ {[%emt 0:00:03]} Kxe6 {[%emt 0:00:06]} 32. a4 {[%emt 0:00:10]} h5 {[%emt 0:00:19]} 33. Rb4 {[%emt 0:00:15]} Bd6 {[%emt 0:00:33]} 34. Rb3 {[%emt 0:03:57]} bxa4 {[%emt 0:00:41]} 35. Rb6 {[%emt 0:00:16]} g4 {[%emt 0:00:27]} 36. Rxa6 {[%emt 0:00:35]} a3 {[%emt 0:00:27]} 37. hxg4 {[%emt 0:02:30]} hxg4 {[%emt 0:00:04]} 38. Rg3 {[%emt 0:00:41]} Rg5 {[%emt 0:00:50]} 39. Rd3 {[%emt 0:01:10]} Rd5 {[%emt 0:00:29]} 40. Rxd5 {[%emt 0:00:26]} Kxd5 {[%emt 0:00:04]} 41. c4+ {[%emt 0:50:13]} Ke5 {[%emt 0:23:47]} 42. d4+ {[%emt 0:00:00]} Ke6 {[%emt 0:00:13]} 43. c5 {[%emt 0:00:00]} g3 {[%emt 0:00:08]} 44. cxd6 {[%emt 0:00:00]} g2 {[%emt 0:21:45]} 45. d7+ {[%emt 0:00:00]} Kf7 {[%emt 0:00:11]} 46. d8=Q {[%emt 0:00:00]} g1=Q+ {[%emt 0:00:11]} 47. Kc2 {[%emt 0:00:00]} Qg2+ {[%emt 0:03:48]} 48. Kb3 {[%emt 0:00:00]} Qb2+ {[%emt 0:00:24]} 49. Ka4 {[%emt 0:00:00]} Qc2+ {[%emt 0:00:24]} 50. Ka5 {[%emt 0:00:00]} Qf5+ {[%emt 0:05:07]} 51. Kb6 {[%emt 0:00:00]} 1-0

[Event "FIDE Chesscom Grand Swiss 2019"]
[Site "Douglas-Isle of Man"]
[Date "2019.10.18"]
[Round "8.37"]
[White "Jansa, Vlastimil"]
[Black "Prithu Gupta"]
[Result "0-1"]
[ECO "C70"]
[WhiteElo "2452"]
[BlackElo "2493"]
[Annotator "ChessBase"]
[PlyCount "82"]
[EventDate "2019.10.10"]
[EventType "swiss"]
[EventCountry "GBR"]
[SourceTitle "playchess.com"]
[Source "ChessBase"]
[SourceQuality "1"]
[TimeControl "40/6000+30:20/3000+30:900+30"]

1. e4 {[%emt 0:00:00]} e5 {[%emt 0:00:00]} 2. Nf3 {[%emt 0:00:00]} Nc6 {[%emt 0:00:00]} 3. Bb5 {[%emt 0:00:00]} g6 {[%emt 0:00:00]} 4. c3 {[%emt 0:00:46]} a6 {[%emt 0:00:00]} 5. Ba4 {[%emt 0:00:13]} Bg7 {[%emt 0:00:00]} 6. d4 {[%emt 0:01:21]} exd4 {[%emt 0:00:05]} 7. cxd4 {[%emt 0:00:06]} b5 {[%emt 0:00:04]} 8. Bc2 {[%emt 0:01:53]} d6 {[%emt 0:00:04]} 9. h3 {[%emt 0:01:18]} Nf6 {[%emt 0:00:10]} 10. O-O {[%emt 0:01:01]} O-O {[%emt 0:00:33]} 11. Re1 {[%emt 0:01:32]} Bb7 {[%emt 0:01:19]} 12. Nc3 {[%emt 0:07:50]} Re8 {[%emt 0:00:07]} 13. Bg5 {[%emt 0:06:03]} h6 {[%emt 0:00:06]} 14. Bh4 {[%emt 0:00:45]} Na5 {[%emt 0:00:05]} 15. a3 {[%emt 0:12:07]} Nc4 {[%emt 0:07:49]} 16. Qc1 {[%emt 0:06:48]} g5 {[%emt 0:00:41]} 17. Bg3 {[%emt 0:00:26]} c5 {[%emt 0:03:11]} 18. d5 {[%emt 0:20:21]} Nh5 {[%emt 0:02:46]} 19. Bh2 {[%emt 0:03:16]} Bc8 {[%emt 0:23:06]} 20. Bd3 {[%emt 0:12:03]} Ne5 {[%emt 0:03:03]} 21. Nxe5 {[%emt 0:00:39]} Bxe5 {[%emt 0:00:43]} 22. Bxe5 {[%emt 0:00:23]} Rxe5 {[%emt 0:00:19]} 23. Qd2 {[%emt 0:03:41]} Nf4 {[%emt 0:05:08]} 24. Bf1 {[%emt 0:00:46]} Qf6 {[%emt 0:00:18]} 25. Re3 {[%emt 0:04:19]} Bd7 {[%emt 0:01:53]} 26. Rf3 {[%emt 0:04:37]} Qg7 {[%emt 0:00:12]} 27. b4 {[%emt 0:01:43]} Rc8 {[%emt 0:02:49]} 28. Rc1 {[%emt 0:00:18]} Ree8 {[%emt 0:00:54]} 29. Re3 {[%emt 0:01:31]} Rc7 {[%emt 0:03:38]} 30. Ne2 {[%emt 0:01:06]} c4 {[%emt 0:04:53]} 31. Rcc3 {[%emt 0:04:19]} Bc8 {[%emt 0:04:15]} 32. Nd4 {[%emt 0:07:23]} Rce7 {[%emt 0:00:51]} 33. f3 {[%emt 0:02:59]} Bd7 {[%emt 0:01:28]} 34. Kh2 {[%emt 0:02:10]} f5 {[%emt 0:02:02]} 35. Nxf5 {[%emt 0:01:35]} Bxf5 {[%emt 0:00:06]} 36. exf5 {[%emt 0:00:02]} Rxe3 {[%emt 0:00:34]} 37. Rxe3 {[%emt 0:00:05]} Rxe3 {[%emt 0:00:05]} 38. Qxe3 {[%emt 0:00:12]} Qe5 {[%emt 0:00:06]} 39. Qa7 {[%emt 0:03:14]} Nxd5+ {[%emt 0:02:49]} 40. g3 {[%emt 0:00:34]} Ne3 {[%emt 0:00:24]} 41. Bg2 {[%emt 0:05:11]} Nxf5 {[%emt 0:00:22]} 0-1

[Event "FIDE Chesscom Grand Swiss 2019"]
[Site "Douglas-Isle of Man"]
[Date "2019.10.18"]
[Round "8.38"]
[White "Movsziszian, Karen"]
[Black "Sebag, Marie"]
[Result "1-0"]
[ECO "A07"]
[WhiteElo "2475"]
[BlackElo "2445"]
[Annotator "ChessBase"]
[PlyCount "71"]
[EventDate "2019.10.10"]
[EventType "swiss"]
[EventCountry "GBR"]
[SourceTitle "playchess.com"]
[Source "ChessBase"]
[SourceQuality "1"]
[TimeControl "40/6000+30:20/3000+30:900+30"]

1. g3 {[%emt 0:00:00]} d5 {[%emt 0:00:00]} 2. Nf3 {[%emt 0:00:05]} g6 {[%emt 0:00:09]} 3. Bg2 {[%emt 0:04:13]} Bg7 {[%emt 0:00:06]} 4. O-O {[%emt 0:00:28]} e5 {[%emt 0:00:19]} 5. d3 {[%emt 0:00:01]} Ne7 {[%emt 0:00:13]} 6. c3 {[%emt 0:00:04]} a5 {[%emt 0:03:19]} 7. a4 {[%emt 0:00:16]} O-O {[%emt 0:00:44]} 8. e4 {[%emt 0:00:03]} Nbc6 {[%emt 0:03:12]} 9. Na3 {[%emt 0:02:18]} h6 {[%emt 0:16:24]} 10. Nb5 {[%emt 0:01:51]} Be6 {[%emt 0:03:24]} 11. Be3 {[%emt 0:00:19]} Qd7 {[%emt 0:09:45]} 12. Bc5 {[%emt 0:00:31]} Rfe8 {[%emt 0:04:50]} 13. Qc2 {[%emt 0:00:06]} b6 {[%emt 0:04:21]} 14. Ba3 {[%emt 0:00:02]} Rad8 {[%emt 0:06:34]} 15. Rfe1 {[%emt 0:00:11]} f5 {[%emt 0:02:09]} 16. Rad1 {[%emt 0:10:46]} Kh7 {[%emt 0:06:31]} 17. h4 {[%emt 0:11:34]} Ng8 {[%emt 0:03:03]} 18. c4 {[%emt 0:14:12]} dxe4 {[%emt 0:07:38]} 19. dxe4 {[%emt 0:00:19]} Qf7 {[%emt 0:00:28]} 20. h5 {[%emt 0:15:37]} g5 {[%emt 0:12:37]} 21. Nxc7 {[%emt 0:02:07]} f4 {[%emt 0:00:21]} 22. Nxe8 {[%emt 0:02:38]} Rxe8 {[%emt 0:00:03]} 23. Rd6 {[%emt 0:01:48]} Rc8 {[%emt 0:02:38]} 24. c5 {[%emt 0:06:10]} bxc5 {[%emt 0:02:07]} 25. Qxc5 {[%emt 0:02:56]} Nge7 {[%emt 0:07:06]} 26. Qb5 {[%emt 0:02:07]} Rb8 {[%emt 0:03:32]} 27. Qd3 {[%emt 0:03:18]} Bg4 {[%emt 0:05:28]} 28. Rc1 {[%emt 0:02:12]} Nb4 {[%emt 0:03:15]} 29. Bxb4 {[%emt 0:04:09]} Rxb4 {[%emt 0:00:05]} 30. Nh2 {[%emt 0:00:52]} Be6 {[%emt 0:01:10]} 31. Qa6 {[%emt 0:02:05]} fxg3 {[%emt 0:01:36]} 32. fxg3 {[%emt 0:00:14]} Bc4 {[%emt 0:00:21]} 33. Qa7 {[%emt 0:03:47]} Rxb2 {[%emt 0:00:27]} 34. Rd7 {[%emt 0:01:17]} Bf8 {[%emt 0:00:17]} 35. Ng4 {[%emt 0:07:22]} Kg8 {[%emt 0:01:12]} 36. Rxe7 {[%emt 0:00:48]} 1-0

[Event "FIDE Chesscom Grand Swiss 2019"]
[Site "Douglas-Isle of Man"]
[Date "2019.10.18"]
[Round "8.40"]
[White "Kolbus, Dietmar"]
[Black "Cramling, Pia"]
[Result "1/2-1/2"]
[ECO "A14"]
[WhiteElo "2300"]
[BlackElo "2462"]
[Annotator "ChessBase"]
[PlyCount "78"]
[EventDate "2019.10.10"]
[EventType "swiss"]
[EventCountry "GBR"]
[SourceTitle "playchess.com"]
[Source "ChessBase"]
[SourceQuality "1"]
[TimeControl "40/6000+30:20/3000+30:900+30"]

1. c4 {[%emt 0:00:00]} e6 {[%emt 0:00:00]} 2. Nf3 {[%emt 0:00:06]} Nf6 {[%emt 0:00:00]} 3. g3 {[%emt 0:00:46]} d5 {[%emt 0:00:27]} 4. Bg2 {[%emt 0:01:06]} Be7 {[%emt 0:00:47]} 5. O-O {[%emt 0:00:15]} O-O {[%emt 0:00:26]} 6. b3 {[%emt 0:01:26]} b6 {[%emt 0:02:00]} 7. Bb2 {[%emt 0:01:12]} Bb7 {[%emt 0:00:18]} 8. cxd5 {[%emt 0:00:44]} Nxd5 {[%emt 0:01:16]} 9. Nc3 {[%emt 0:00:09]} Nf6 {[%emt 0:04:45]} 10. d4 {[%emt 0:01:23]} Nbd7 {[%emt 0:04:52]} 11. Rc1 {[%emt 0:00:24]} c5 {[%emt 0:04:58]} 12. dxc5 {[%emt 0:00:58]} Nxc5 {[%emt 0:06:40]} 13. Qxd8 {[%emt 0:01:55]} Rfxd8 {[%emt 0:00:05]} 14. Rfd1 {[%emt 0:00:10]} a6 {[%emt 0:13:08]} 15. Ne5 {[%emt 0:01:44]} Bxg2 {[%emt 0:02:39]} 16. Kxg2 {[%emt 0:00:04]} Rxd1 {[%emt 0:03:24]} 17. Rxd1 {[%emt 0:00:05]} Rc8 {[%emt 0:02:16]} 18. Rc1 {[%emt 0:07:04]} Bf8 {[%emt 0:20:42]} 19. Na4 {[%emt 0:06:41]} b5 {[%emt 0:02:27]} 20. Nxc5 {[%emt 0:00:41]} Rxc5 {[%emt 0:00:05]} 21. Rxc5 {[%emt 0:00:56]} Bxc5 {[%emt 0:00:03]} 22. Nd3 {[%emt 0:02:17]} Be7 {[%emt 0:02:54]} 23. Bd4 {[%emt 0:05:50]} Nd7 {[%emt 0:04:02]} 24. e4 {[%emt 0:01:17]} f5 {[%emt 0:01:21]} 25. f3 {[%emt 0:01:19]} Kf7 {[%emt 0:03:18]} 26. g4 {[%emt 0:02:16]} g6 {[%emt 0:01:10]} 27. Ne5+ {[%emt 0:04:54]} Nxe5 {[%emt 0:00:39]} 28. Bxe5 {[%emt 0:00:06]} fxg4 {[%emt 0:03:57]} 29. fxg4 {[%emt 0:00:07]} Ke8 {[%emt 0:02:20]} 30. Kf3 {[%emt 0:00:58]} Kd7 {[%emt 0:00:40]} 31. h3 {[%emt 0:00:24]} Bg5 {[%emt 0:01:07]} 32. Ke2 {[%emt 0:00:16]} Kc6 {[%emt 0:00:08]} 33. Bd4 {[%emt 0:00:15]} Bf4 {[%emt 0:00:58]} 34. Kd3 {[%emt 0:00:10]} Bc7 {[%emt 0:01:45]} 35. Be3 {[%emt 0:00:38]} Be5 {[%emt 0:00:17]} 36. Bf2 {[%emt 0:00:08]} Bf6 {[%emt 0:00:25]} 37. Be3 {[%emt 0:00:19]} Be5 {[%emt 0:00:10]} 38. Bf2 {[%emt 0:00:05]} Bf6 {[%emt 0:00:05]} 39. Be3 {[%emt 0:00:05]} Be5 {[%emt 0:00:02]} 1/2-1/2

[Event "FIDE Chesscom Grand Swiss 2019"]
[Site "Douglas-Isle of Man"]
[Date "2019.10.18"]
[Round "8.42"]
[White "Allen, Keith"]
[Black "Dahl, Baard"]
[Result "1/2-1/2"]
[ECO "D85"]
[WhiteElo "2161"]
[BlackElo "2067"]
[Annotator "NA"]
[PlyCount "89"]
[EventDate "2019.10.10"]
[EventType "swiss"]
[EventCountry "GBR"]
[SourceTitle "playchess.com"]
[Source "ChessBase"]
[SourceQuality "1"]
[TimeControl "40/6000+30:20/3000+30:900+30"]

1. d4 {[%emt 0:02:13]} Nf6 {[%emt 0:00:00]} 2. c4 {[%emt 0:00:13]} g6 {[%emt 0:00:00]} 3. Nc3 {[%emt 0:00:18]} d5 {[%emt 0:00:00]} 4. cxd5 {[%emt 0:00:24]} Nxd5 {[%emt 0:00:00]} 5. e4 {[%emt 0:00:05]} Nxc3 {[%emt 0:00:03]} 6. bxc3 {[%emt 0:00:04]} Bg7 {[%emt 0:00:07]} 7. Qa4+ {[%emt 0:00:26]} Nd7 {[%emt 0:01:08]} 8. Nf3 {[%emt 0:00:31]} c5 {[%emt 0:01:43]} 9. Bg5 {[%emt 0:02:02]} O-O {[%emt 0:01:38]} 10. Be2 {[%emt 0:00:28]} h6 {[%emt 0:05:42]} 11. Bh4 {[%emt 0:10:12]} g5 {[%emt 0:11:13]} 12. Bg3 {[%emt 0:00:09]} cxd4 {[%emt 0:00:26]} 13. Nxd4 {[%emt 0:08:11]} Nc5 {[%emt 0:17:16]} 14. Qc2 {[%emt 0:01:43]} Qa5 {[%emt 0:09:33]} 15. O-O {[%emt 0:02:52]} Na4 {[%emt 0:02:04]} 16. Rac1 {[%emt 0:07:11]} Bd7 {[%emt 0:21:25]} 17. Rfd1 {[%emt 0:01:40]} Rfd8 {[%emt 0:01:34]} 18. c4 {[%emt 0:14:13]} Rac8 {[%emt 0:02:10]} 19. f3 {[%emt 0:03:29]} e5 {[%emt 0:10:03]} 20. Nb3 {[%emt 0:13:06]} Qc7 {[%emt 0:00:09]} 21. c5 {[%emt 0:02:44]} Bf8 {[%emt 0:02:03]} 22. Rd5 {[%emt 0:04:52]} f6 {[%emt 0:00:50]} 23. Qc4 {[%emt 0:10:49]} Kg7 {[%emt 0:00:07]} 24. Bf2 {[%emt 0:00:32]} Bc6 {[%emt 0:04:44]} 25. Rc2 {[%emt 0:03:27]} Qf7 {[%emt 0:03:16]} 26. Rxd8 {[%emt 0:00:51]} Qxc4 {[%emt 0:00:30]} 27. Bxc4 {[%emt 0:00:47]} Rxd8 {[%emt 0:00:04]} 28. Kf1 {[%emt 0:02:35]} b6 {[%emt 0:05:48]} 29. cxb6 {[%emt 0:02:43]} Nxb6 {[%emt 0:00:16]} 30. Ba6 {[%emt 0:02:24]} Ba4 {[%emt 0:00:54]} 31. Rc7+ {[%emt 0:02:38]} Rd7 {[%emt 0:00:17]} 32. Rxd7+ {[%emt 0:00:20]} Bxd7 {[%emt 0:00:24]} 33. Nc5 {[%emt 0:01:49]} Bc8 {[%emt 0:07:36]} 34. Bxc8 {[%emt 0:02:55]} Nxc8 {[%emt 0:00:13]} 35. Ne6+ {[%emt 0:00:30]} Kf7 {[%emt 0:00:05]} 36. Nxf8 {[%emt 0:00:10]} Kxf8 {[%emt 0:00:02]} 37. Bc5+ {[%emt 0:05:32]} Ke8 {[%emt 0:00:07]} 38. g4 {[%emt 0:00:34]} a6 {[%emt 0:01:44]} 39. Ke2 {[%emt 0:00:47]} Ne7 {[%emt 0:00:35]} 40. Bxe7 {[%emt 0:01:53]} Kxe7 {[%emt 0:00:02]} 41. Kd3 {[%emt 0:03:33]} Kd6 {[%emt 0:01:46]} 42. Kc4 {[%emt 0:08:42]} Kc6 {[%emt 0:00:09]} 43. Kb4 {[%emt 0:01:18]} Kb6 {[%emt 0:00:13]} 44. a3 {[%emt 0:00:42]} Kc6 {[%emt 0:00:11]} 45. a4 {[%emt 0:01:05]} 1/2-1/2